[Event "Romanian-ch Youth Open U20 2024"]
[Site "Eforie Nord"]
[Date "2024.04.14"]
[Round "4.4"]
[White "Korcsek, Alexandru-David"]
[Black "Prisacaru, Stefan-Emilian"]
[Result "0-1"]
[ECO "A07"]
[WhiteElo "2022"]
[BlackElo "2286"]
[Annotator "TA"]
[PlyCount "68"]
[EventDate "2024.04.10"]
[EventType "swiss"]
[EventCountry "ROU"]
[SourceTitle "playchess.com"]
[Source "ChessBase"]
[SourceQuality "1"]
[TimeControl "5400+30"]

{[%evp 9,68,12,22,16,18,10,18,19,22,12,21,20,22,12,22,18,17,4,52,48,54,41,34,50,41,-5,-10,-37,-14,-68,0,-35,-26,-23,0,-51,-40,-54,-39,-116,-112,-112,0,0,46,57,112,53,36,50,39,37,83,79,78,0,0,-341,-271,-682,-693]} 1. Nf3 {[%emt 0:00:03]} d5 {[%emt 0:00:03]} 2. b3 {[%emt 0:00:16]} Bf5 {[%emt 0:00:22]} 3. Bb2 {[%emt 0:00:10]} e6 {[%emt 0:00:03]} 4. g3 {[%emt 0:01:11]} Nf6 {[%emt 0:00:17]} 5. Bg2 {[%emt 0:00:06]} Nbd7 {[%emt 0:00:14]} 6. O-O {[%emt 0:00:15]} h6 {[%emt 0:00:35]} 7. d3 {[%emt 0:00:12]} Bc5 {[%emt 0:00:23]} 8. Nbd2 {[%emt 0:02:17][%cal Oe2e4,Bb1d2,Bd2f1,Bf1h2][%mdl 32] The position is equal.} O-O {[%emt 0:00:47]} 9. Re1 {[%emt 0:03:08]} Bh7 {[%emt 0:04:29]} 10. e4 {[%emt 0:01:15][%cal Be2e4,Be4e5][%mdl 32]} c6 {[%emt 0:02:06]} 11. e5 {[%emt 0:19:22]} Ne8 {[%emt 0:00:06]} 12. Nf1 {[%emt 0:02:11]} Nc7 {[%emt 0:11:52]} 13. h4 {[%emt 0:01:20]} f6 {[%emt 0:03:49]} (13... Be7 $11) 14. exf6 {[%emt 0:02:29]} Nxf6 {[%emt 0:00:04]} 15. N1h2 {[%emt 0:04:06]} Qe7 {[%emt 0:13:36]} 16. Qe2 {[%emt 0:01:54]} Rae8 {[%emt 0:00:39]} 17. Be5 {[%emt 0:01:39]} (17. a3 $14) 17... Nb5 $11 {[%emt 0:08:14]} 18. Bh3 {[%emt 0:14:05]} Bb4 {[%emt 0:07:47]} 19. Rf1 {[%emt 0:04:32]} ({White should play} 19. Bb2 $11) 19... Nc3 {[%emt 0:20:09]} (19... Nd7 $15) 20. Qe3 {[%emt 0:01:22]} Nd7 {[%emt 0:08:44]} 21. a3 {[%emt 0:01:23]} Ba5 {[%emt 0:00:08]} 22. Rfe1 {[%emt 0:09:41]} (22. b4 $11 Bb6 23. Qd2 Nxe5 24. Nxe5) 22... Nb5 {[%emt 0:05:01][%csl LRa3,LRe1][%cal Od7e5] [#] And now ...Nxe5! would win.} 23. b4 {[%emt 0:01:21]} Bb6 {[%emt 0:00:02]} 24. Qd2 {[%emt 0:02:39]} (24. Qe2 $1 $15) 24... Nxe5 $17 {[%emt 0:03:04]} 25. Rxe5 {[%emt 0:01:01]} Qd6 {[%emt 0:00:22] Black is more active.} (25... Nd4 $17 26. Bg2 Rf6) 26. Rae1 $11 {[%emt 0:03:51]} Rf6 {[%emt 0:01:03]} (26... Nxa3 $11 27. Kg2 Rf6) 27. Kg2 $14 {[%emt 0:01:49]} Nd4 {[%emt 0:02:26] [#]} (27... Nxa3 $14 28. Ng4 Rxf3 29. Kxf3 Bd4) 28. Bg4 {[%emt 0:06:28]} (28. Nxd4 $1 $16 Bxd4 29. f4) 28... Ref8 {[%emt 0:01:39]} 29. c3 {[%emt 0:01:43]} Nxf3 {[%emt 0:02:44]} 30. Nxf3 {[%emt 0:00:05]} Bf5 {[%emt 0:00:37]} (30... Be4 $14 {might be stronger.} 31. dxe4 Rxf3 32. Bxf3 (32. Bxe6+ $2 {is the wrong capture.} Kh8 $19) 32... Qxe5) 31. Bxf5 $16 {[%emt 0:01:27]} exf5 {[%emt 0:00:55]} 32. Qf4 {[%emt 0:04:09]} ({White should try} 32. h5 $16) 32... Bc7 $11 {[%emt 0:00:51]} 33. Qd4 $2 {[%emt 0:00:11][%mdl 8192]} (33. R5e2 $11 {and White stays safe.}) 33... f4 $19 {[%emt 0:00:39]} 34. g4 {[%emt 0:00:29]} (34. Qxa7 $2 {perishes.} fxg3 35. Re8 Rxf3 $19) (34. Qc5 fxg3 (34... Qxc5 $2 35. bxc5 fxg3 36. R5e3 $19) 35. Qxd6 Bxd6 36. R5e3 gxf2 37. Kxf2) 34... Bb6 {[%emt 0:00:43] Weighted Error Value: White=0.53/Black=0.16 (very precise) .  Loses game:     	White=1     	---        Mistake:       	White=7     	Black=6      Inaccurate:     	White=2     	---        OK:         	White=7     	Black=12     Best:        	White=1     	Black=4} 0-1

[Event "Romanian-ch Youth Open U20 2024"]
[Site "Eforie Nord"]
[Date "2024.04.15"]
[Round "5.1"]
[White "Antonica, Dragos-Andrei"]
[Black "Mintau, Andrei-Catalin"]
[Result "1/2-1/2"]
[ECO "A37"]
[WhiteElo "2317"]
[BlackElo "2006"]
[Annotator "TA"]
[PlyCount "93"]
[EventDate "2024.04.10"]
[EventType "swiss"]
[EventCountry "ROU"]
[SourceTitle "playchess.com"]
[Source "ChessBase"]
[SourceQuality "1"]
[TimeControl "5400+30"]

{[%evp 19,93,-6,-4,3,0,-34,-12,-33,-45,-35,-42,-51,-59,-44,0,0,42,0,0,0,0,0,0,0,0,0,0,0,0,-89,-6,0,44,45,41,24,45,0,28,29,45,18,9,0,4,0,0,-71,-57,-53,-44,-32,-29,-116,35,34,37,49,274,270,261,256,248,233,793,362,351,0,0,0,0,0,0,0,0,0]} 1. c4 {[%emt 0:00:03]} c5 {[%emt 0:05:00]} 2. Nc3 {[%emt 0:00:10]} Nc6 {[%emt 0:00:09]} 3. g3 {[%emt 0:00:05]} e5 {[%emt 0:00:07]} 4. Bg2 {[%emt 0:00:10]} g6 {[%emt 0:00:16]} 5. Nf3 {[%emt 0:01:10]} Bg7 {[%emt 0:00:05]} 6. O-O {[%emt 0:00:45]} d6 {[%emt 0:00:08]} 7. a3 {[%emt 0:00:57]} a5 {[%emt 0:00:08]} 8. Ne1 {[%emt 0:01:06]} Be6 {[%emt 0:00:05]} 9. d3 {[%emt 0:00:35]} Nge7 {[%emt 0:00:08]} 10. Nc2 {[%emt 0:00:21]} d5 {[%emt 0:00:30]} 11. cxd5 {[%emt 0:01:47]} Nxd5 {[%emt 0:00:21]} 12. Ne4 {[%emt 0:07:46]} b6 {[%emt 0:01:23]} 13. Ng5 {[%emt 0:02:10]} Bc8 {[%emt 0:02:52]} 14. Ne3 {[%emt 0:09:12]} Nde7 {[%emt 0:00:14]} 15. Bd2 {[%emt 0:14:58][%cal Ob2b4]} h6 {[%emt 0:06:36]} 16. Ne4 {[%emt 0:03:17][%cal Ob2b4]} Be6 {[%emt 0:04:10]} 17. Qa4 {[%emt 0:04:22][%cal Oe4c5] Black must now prevent Nxc5!} Qc7 {[%emt 0:26:45]} 18. b4 {[%emt 0:06:06]} O-O $1 {[%emt 0:16:48] ...axb4 would now be deadly.} 19. bxc5 {[%emt 0:06:07]} b5 {[%emt 0:01:09]} 20. Qd1 {[%emt 0:01:36]} (20. Qxb5 $2 {loses.} Rfb8 21. a4 (21. Qa4 $2 Bb3 $19) 21... Nd4 $19 (21... Rxb5 $2 22. axb5 Nd4 23. Rfb1 $19)) 20... Nd4 {[%emt 0:01:59]} 21. Rb1 {[%emt 0:07:43]} f5 {[%emt 0:08:14]} 22. Nc3 {[%emt 0:02:08][%csl LRa8,LRb5]} Qxc5 {[%emt 0:01:44]} 23. Bxa8 {[%emt 0:05:05]} Rxa8 {[%emt 0:00:01]} 24. Ng2 {[%emt 0:03:01] [#]} (24. Nc2 $11 Nb3 25. Rb2) 24... Qc6 {[%emt 0:13:12]} (24... a4 $1 $17 {[%cal Od4b3]} 25. e3 Nb3) 25. Ne1 $11 {[%emt 0:06:01]} Nd5 {[%emt 0:04:19] Dodges e3} 26. Nxd5 {[%emt 0:01:45]} Bxd5 {[%emt 0:00:14]} 27. Be3 {[%emt 0:02:33]} Ne6 $1 {[%emt 0:01:29]} 28. f3 {[%emt 0:05:08]} g5 {[%emt 0:02:17]} 29. Bf2 {[%emt 0:00:59] Threatens to win with e4.} e4 {[%emt 0:00:51]} 30. Rc1 {[%emt 0:02:42]} Qb7 {[%emt 0:00:09]} 31. dxe4 {[%emt 0:01:20]} fxe4 {[%emt 0:00:07]} 32. fxe4 {[%emt 0:00:48]} Bxe4 {[%emt 0:00:03]} 33. Nd3 {[%emt 0:02:00]} (33. Qd6 $11 Re8 34. Be3) 33... Bh1 {[%emt 0:01:07][%mdl 1024] Black has strong compensation. This pair of bishops is nice.} 34. Ne1 {[%emt 0:00:09] Against Qg2+. aiming for Nf3.} Rd8 $1 {[%emt 0:00:22]} 35. Qb3 {[%emt 0:00:59]} Bd5 {[%emt 0:00:04]} 36. Qe3 {[%emt 0:00:50] [#]} (36. Qd3 $11) 36... g4 $2 {[%emt 0:02:01]} (36... Nd4 $1 $17 37. Rc5 a4) 37. Nd3 $14 {[%emt 0:01:19] Rfd1 is the strong threat.} Ng5 {[%emt 0:01:44][%cal Rg5h3]} 38. Nf4 {[%emt 0:01:01]} Bh1 $2 {[%emt 0:00:21]} (38... Rf8 $14 39. h4 Nh3+ (39... gxh3 40. Qb6 $16) 40. Kh2 Nxf4 41. gxf4 Qf7) 39. Rfd1 $18 {[%emt 0:00:43]} Rf8 {[%emt 0:00:23][%cal Of8f4] Strongly threatening ...Rxf4!} 40. Kf1 {[%emt 0:00:32]} Nh3 {[%emt 0:01:26][%cal Oh1d5]} 41. Qe6+ {[%emt 0:00:26]} Kh7 $2 {[%emt 0:00:06]} (41... Qf7) 42. Qg6+ {[%emt 0:00:50]} (42. Rd7 $142 {Threatening mate with Qg6+.} Rxf4 43. Rxb7 Rxf2+ 44. Ke1 Bxb7 45. Rc7 (45. Qxg4 Bg2 $18)) 42... Kh8 {[%emt 0:00:16]} 43. Qxg4 {[%emt 0:00:40]} (43. Nxh3 $18 gxh3 44. Ke1) 43... Nxf2 $1 $11 {[%emt 0:01:05] The position is equal.} 44. Kxf2 {[%emt 0:00:29]} Qg2+ {[%emt 0:01:17]} 45. Ke1 {[%emt 0:00:20]} (45. Ke3 $5 Qe4+ $8 46. Kd2 Qd4+ 47. Ke1 Qg1+ 48. Kd2 Qd4+ 49. Ke1 Qg1+ 50. Kd2 Qd4+ $11) 45... Qg1+ {[%emt 0:00:32]} 46. Kd2 {[%emt 0:00:01] Ng6+ would kill now.} Qd4+ {[%emt 0:00:10]} 47. Ke1 {[%emt 0:00:14] Weighted Error Value: White=0.47/Black=0.24 (precise) .  Loses game:     	---       	Black=1      Mistake:       	White=4     	Black=3      Inaccurate:     	White=4     	Black=4      OK:         	White=18    	Black=13     Best:        	White=2     	Black=2      Strong:       	---       	Black=4} 1/2-1/2

[Event "Romanian-ch Youth Open U20 2024"]
[Site "Eforie Nord"]
[Date "2024.04.15"]
[Round "5.2"]
[White "Serban, Cristian-Stefan"]
[Black "Tudor, Henry Edward"]
[Result "0-1"]
[ECO "E05"]
[WhiteElo "2282"]
[BlackElo "2279"]
[Annotator "TA"]
[PlyCount "52"]
[EventDate "2024.04.10"]
[EventType "swiss"]
[EventCountry "ROU"]
[SourceTitle "playchess.com"]
[Source "ChessBase"]
[SourceQuality "1"]
[TimeControl "5400+30"]

{[%evp 13,51,20,16,15,10,18,22,15,10,16,6,4,6,-110,13,14,16,10,9,0,0,-66,-60,-52,-44,-109,-96,-289,-300,-312,-303,-298,-280,-451,-431,-421,-428,-612,-616,-29999]} 1. d4 {[%emt 0:04:42]} Nf6 {[%emt 0:00:05]} 2. c4 {[%emt 0:00:11]} e6 {[%emt 0:00:05]} 3. Nf3 {[%emt 0:00:04]} d5 {[%emt 0:00:03]} 4. g3 {[%emt 0:00:06]} Be7 {[%emt 0:00:05]} 5. Bg2 {[%emt 0:00:06]} O-O {[%emt 0:00:05]} 6. O-O {[%emt 0:00:06]} dxc4 {[%emt 0:00:03]} 7. Qc2 {[%emt 0:00:06]} b5 {[%emt 0:00:10]} 8. a4 {[%emt 0:00:07]} b4 {[%emt 0:00:03]} 9. Nfd2 {[%emt 0:01:26]} (9. Qxc4 Ba6 10. Qc2 Nbd7 $15) 9... Nd5 {[%emt 0:00:06]} 10. Nxc4 {[%emt 0:01:29] The position is equal.} (10. Qxc4 Ba6 11. Qc2 c5 (11... Bxe2 12. Re1 $17) 12. dxc5 Nd7 $17) 10... c5 {[%emt 0:00:04]} 11. dxc5 {[%emt 0:00:37]} Ba6 {[%emt 0:00:03]} 12. Rd1 {[%emt 0:01:51] Strongly threatening e4.} Nd7 {[%emt 0:04:45][%cal Bb8d7,Bd7e5,Be5c6][%mdl 32]} 13. Ne3 {[%emt 0:12:24]} (13. c6 $11 Rc8 14. Ne3 (14. cxd7 Rxc4 15. Qb3 Rc7 $17)) 13... Rc8 {[%emt 0:00:23] Black is more active.} (13... Bxc5 $17 {Hoping for ...Rc8.} 14. Nxd5 exd5) 14. c6 $11 {[%emt 0:00:35]} Ne5 {[%emt 0:00:04]} 15. Nxd5 {[%emt 0:03:19]} exd5 {[%emt 0:02:49]} 16. Bxd5 {[%emt 0:07:30]} Nxc6 $1 {[%emt 0:00:15]} 17. Qe4 {[%emt 0:19:18] Wards off Nd4} (17. Bxc6 $2 Rxc6 18. Nc3 Qc7 $19 (18... Qe8 $2 19. Be3 $19)) (17. Bxf7+ $11 Rxf7 18. Rxd8+ Bxd8 19. Be3) 17... Bf6 $15 {[%emt 0:09:41][%mdl 1024] ...Re8 is the strong threat. Black has compensation.} 18. Be3 $1 {[%emt 0:06:55][%cal Od5f7] aiming for Bxf7+!} Re8 {[%emt 0:09:57]} 19. Qg4 {[%emt 0:00:25]} ({White should play} 19. Qf5 $15 Kh8 (19... Bxe2 20. Bxf7+ Kxf7 21. Rxd8 $11) 20. Bb3) 19... Kh8 $17 {[%emt 0:39:24]} 20. Bb3 $2 {[%emt 0:04:03] [#] This move loses the game for White.} (20. h3 $17) 20... Nd4 $1 $19 {[%emt 0:06:09][%mdl 512]} 21. Bxd4 {[%emt 0:04:16]} (21. Rxd4 $2 {perishes.} Bxd4 22. Qxd4 (22. Bxd4 $2 Rc1+ 23. Kg2 Bb7+ 24. e4 Qxd4 $19) 22... Rc1+ 23. Kg2 (23. Bxc1 $2 {is the wrong capture.} Qxd4 24. e3 Qd3 $19) 23... Bb7+ $19) 21... Bxe2 {[%emt 0:01:11]} 22. Bxf6 {[%emt 0:00:35]} Qxf6 {[%emt 0:00:03]} 23. Qxb4 {[%emt 0:06:13]} (23. Qd4 {only move.} Bxd1 24. Qxd1) 23... Bxd1 {[%emt 0:01:33]} 24. Bxd1 {[%emt 0:00:06] Threatens to win with Nc3.} Rc1 {[%emt 0:00:27]} 25. Qd2 {[%emt 0:00:19] [#]} (25. Nc3 $142 Rxa1 26. Kg2) 25... Qf3 $1 {[%emt 0:01:39]} 26. Qxc1 {[%emt 0:02:36]} (26. Nc3 Rxa1) 26... Re1# {[%emt 0:00:55] Weighted Error Value: White=0.78/Black=0.08 (flawless) .  Loses game:     	White=1     	---        Mistake:       	White=5     	Black=1      Inaccurate:     	White=1     	---        OK:         	White=5     	Black=7      Best:        	White=3     	Black=5      Strong:       	White=1     	Black=1      Brilliant:      	---       	Black=1} 0-1

[Event "Romanian-ch Youth Open U20 2024"]
[Site "Eforie Nord"]
[Date "2024.04.15"]
[Round "5.3"]
[White "Mazilu, Stefan Fabian"]
[Black "Coca, Cristi-Iulian"]
[Result "1/2-1/2"]
[ECO "B23"]
[WhiteElo "1994"]
[BlackElo "2235"]
[Annotator "TA"]
[PlyCount "62"]
[EventDate "2024.04.10"]
[EventType "swiss"]
[EventCountry "ROU"]
[SourceTitle "playchess.com"]
[Source "ChessBase"]
[SourceQuality "1"]
[TimeControl "5400+30"]

{[%evp 9,62,11,12,2,19,14,65,54,55,80,82,77,70,0,28,8,25,11,33,22,22,0,0,0,0,0,0,0,2,0,0,0,0,-8,-8,-11,0,-12,-8,-11,0,0,0,-25,0,0,0,-26,-18,-23,-33,-33,-33,-33,-31]} 1. e4 {[%emt 0:00:43]} c5 {[%emt 0:00:15]} 2. Nc3 {[%emt 0:00:08]} e6 {[%emt 0:00:04]} 3. d4 {[%emt 0:00:07]} cxd4 {[%emt 0:00:14]} 4. Qxd4 {[%emt 0:00:03]} Nc6 {[%emt 0:00:14]} 5. Qd3 {[%emt 0:00:06]} Nf6 {[%emt 0:00:52]} 6. Bf4 {[%emt 0:00:06]} Bb4 {[%emt 0:05:34]} 7. Nge2 {[%emt 0:00:12]} d5 {[%emt 0:11:38]} (7... O-O $11) 8. O-O-O $14 {[%emt 0:01:59] White is slightly better.} O-O {[%emt 0:10:01]} 9. exd5 {[%emt 0:07:49]} Nxd5 {[%emt 0:00:58]} 10. Nxd5 {[%emt 0:00:59]} exd5 {[%emt 0:00:05]} 11. Kb1 {[%emt 0:14:57]} (11. Qxd5 $14 Qf6 12. a3) 11... Qf6 {[%emt 0:03:44]} 12. Qg3 {[%emt 0:08:35][%cal Oa2a3]} Bf5 {[%emt 0:07:34]} 13. Nc1 {[%emt 0:03:38]} ({Don't play} 13. Rxd5 Rac8 14. Rxf5 Qxf5 $17) 13... Rfe8 {[%emt 0:19:59]} 14. Bd3 {[%emt 0:04:04]} Rac8 {[%emt 0:06:02]} 15. Qg5 {[%emt 0:15:37]} Bxd3 {[%emt 0:00:45]} 16. Rxd3 {[%emt 0:00:50]} Qxg5 {[%emt 0:00:19]} 17. Bxg5 {[%emt 0:00:05]} d4 {[%emt 0:02:40]} 18. Rhd1 {[%emt 0:02:15]} Bc5 {[%emt 0:01:30]} 19. a3 {[%emt 0:01:29]} b5 {[%emt 0:02:03]} 20. Bf4 {[%emt 0:01:35]} a5 {[%emt 0:00:46]} 21. R3d2 {[%emt 0:01:22]} a4 {[%emt 0:03:34]} 22. Nd3 {[%emt 0:04:13]} Bf8 {[%emt 0:00:24]} 23. Bg3 {[%emt 0:02:05]} g6 {[%emt 0:01:35]} 24. f3 {[%emt 0:06:34]} Bh6 {[%emt 0:01:57]} 25. Bf4 {[%emt 0:01:11]} Bg7 {[%emt 0:00:24]} 26. Bg3 {[%emt 0:01:54]} Bh6 {[%emt 0:00:19]} 27. Bf4 {[%emt 0:00:06]} Bg7 {[%emt 0:00:03]} 28. Bg3 {[%emt 0:00:09]} Na5 {[%emt 0:02:01]} 29. Re1 {[%emt 0:02:37]} Rxe1+ {[%emt 0:01:30]} 30. Bxe1 {[%emt 0:00:34]} Re8 {[%emt 0:04:33]} 31. Bf2 {[%emt 0:01:26]} Nc4 {[%emt 0:04:31] Weighted Error Value: White=0.07 (flawless) /Black=0.09 (flawless) .  Mistake:       	White=1     	Black=1      Inaccurate:     	---       	Black=1      OK:         	White=10    	Black=10     Best:        	White=2     	---} 1/2-1/2

[Event "Romanian-ch Youth Open U20 2024"]
[Site "Eforie Nord"]
[Date "2024.04.15"]
[Round "5.4"]
[White "Prisacaru, Stefan-Emilian"]
[Black "Antal, Hunor-Zoltan"]
[Result "1/2-1/2"]
[ECO "A48"]
[WhiteElo "2286"]
[BlackElo "2301"]
[Annotator "RC"]
[PlyCount "66"]
[EventDate "2024.04.10"]
[EventType "swiss"]
[EventCountry "ROU"]
[SourceTitle "playchess.com"]
[Source "ChessBase"]
[SourceQuality "1"]
[TimeControl "5400+30"]

1. d4 {[%emt 0:00:04]} Nf6 {[%emt 0:00:28]} 2. Bf4 {[%emt 0:00:13]} c5 {[%emt 0:00:30]} 3. e3 {[%emt 0:00:06]} cxd4 {[%emt 0:00:27]} 4. exd4 {[%emt 0:00:08]} g6 {[%emt 0:00:14]} 5. c3 {[%emt 0:03:49]} Bg7 {[%emt 0:00:31]} 6. Nf3 {[%emt 0:00:04]} d6 {[%emt 0:00:13]} 7. Be2 {[%emt 0:03:48]} O-O {[%emt 0:00:08]} 8. O-O {[%emt 0:00:02]} Nc6 {[%emt 0:00:31]} 9. h3 {[%emt 0:05:28]} b6 {[%emt 0:01:32]} 10. Re1 {[%emt 0:04:22]} Bb7 {[%emt 0:00:17]} 11. Bf1 {[%emt 0:02:10]} Qc7 {[%emt 0:03:20]} 12. Nbd2 {[%emt 0:00:46]} Rad8 {[%emt 0:00:43]} 13. Bh2 {[%emt 0:05:41]} Rfe8 {[%emt 0:00:47]} 14. Qa4 {[%emt 0:15:14]} a6 {[%emt 0:13:10]} 15. Rad1 {[%emt 0:04:36]} b5 {[%emt 0:02:27]} 16. Qc2 {[%emt 0:00:12]} Na5 {[%emt 0:03:20]} 17. a4 {[%emt 0:04:51]} Nc4 {[%emt 0:16:58]} 18. axb5 {[%emt 0:04:12]} axb5 {[%emt 0:02:39]} 19. Ra1 {[%emt 0:07:48]} Bd5 {[%emt 0:05:33]} 20. Nxc4 {[%emt 0:07:06]} Bxc4 {[%emt 0:03:03]} 21. Bxc4 {[%emt 0:05:26]} Qxc4 {[%emt 0:09:34]} 22. Nd2 {[%emt 0:03:56]} Qc6 {[%emt 0:01:35]} 23. Qb3 {[%emt 0:00:31]} Rb8 {[%emt 0:03:26]} 24. Ra7 {[%emt 0:05:58]} Nd5 {[%emt 0:01:10]} 25. Ra5 {[%emt 0:03:23]} Rec8 {[%emt 0:10:41]} 26. Bg3 {[%emt 0:01:18]} h6 {[%emt 0:01:36]} 27. Rea1 {[%emt 0:01:24]} Nf6 {[%emt 0:01:43]} 28. Ra7 {[%emt 0:01:02]} Rc7 {[%emt 0:01:23]} 29. R1a6 {[%emt 0:00:47]} Qd7 {[%emt 0:00:32]} 30. Ra8 {[%emt 0:01:00]} Rcc8 {[%emt 0:00:19]} 31. R8a7 {[%emt 0:00:53]} Rc7 {[%emt 0:00:01]} 32. Ra8 {[%emt 0:00:11]} Rcc8 {[%emt 0:00:12]} 33. R8a7 {[%emt 0:00:56]} Rc7 {[%emt 0:00:20]} 1/2-1/2

[Event "Romanian-ch Youth Open U20 2024"]
[Site "Eforie Nord"]
[Date "2024.04.16"]
[Round "6.1"]
[White "Prisacaru, Stefan-Emilian"]
[Black "Tudor, Henry Edward"]
[Result "0-1"]
[ECO "E11"]
[WhiteElo "2286"]
[BlackElo "2279"]
[Annotator "TA"]
[PlyCount "98"]
[EventDate "2024.04.10"]
[EventType "swiss"]
[EventCountry "ROU"]
[SourceTitle "playchess.com"]
[Source "ChessBase"]
[SourceQuality "1"]
[TimeControl "5400+30"]

{[%evp 9,98,10,22,3,10,12,25,14,19,22,14,15,45,37,43,44,60,47,45,37,69,43,43,45,80,47,56,54,49,72,82,35,99,54,90,60,122,112,153,100,110,110,172,131,120,125,129,112,133,106,99,111,102,103,112,12,13,15,5,0,0,0,0,0,0,0,0,0,0,0,0,0,0,-29984,-29985,-29985,-29986,-29986,-29987,-29987,-29984,-29984,-29985,-29990,-29991,-29991,-29991,-29994,-29995,-29997,-29998]} 1. d4 {[%emt 0:00:00]} Nf6 {[%emt 0:01:34]} 2. c4 {[%emt 0:00:05]} e6 {[%emt 0:00:11]} 3. Nf3 {[%emt 0:00:09]} Bb4+ {[%emt 0:00:04]} 4. Bd2 {[%emt 0:00:05]} Qe7 {[%emt 0:00:05]} 5. e3 {[%emt 1:32:41]} O-O {[%emt 0:00:51]} 6. Be2 {[%emt 0:00:00]} Bxd2+ {[%emt 0:03:16]} 7. Qxd2 {[%emt 0:00:00]} d6 {[%emt 0:00:17]} 8. O-O {[%emt 0:00:00] White has an edge.} e5 {[%emt 0:04:41]} 9. Qc2 {[%emt 0:00:00]} e4 {[%emt 0:10:35]} 10. Nfd2 {[%emt 0:00:00]} c6 {[%emt 0:00:36]} 11. Nc3 {[%emt 0:00:00]} Bf5 {[%emt 0:08:36]} 12. b4 {[%emt 0:00:00]} h5 {[%emt 0:17:00]} 13. c5 {[%emt 0:00:00]} d5 {[%emt 0:04:13]} 14. b5 {[%emt 0:00:00]} h4 {[%emt 0:02:44]} 15. bxc6 {[%emt 0:00:00]} bxc6 {[%emt 0:02:37]} 16. Rab1 {[%emt 0:00:00]} Qd7 {[%emt 0:16:32]} 17. Qb3 {[%emt 0:00:00]} Qe6 {[%emt 0:01:03]} 18. Qb7 {[%emt 0:00:00]} Nbd7 {[%emt 0:00:01]} 19. Qa6 {[%emt 0:00:00]} Nb8 {[%emt 0:05:09]} 20. Qa4 {[%emt 0:00:00]} (20. Qa5 $16) 20... Qc8 {[%emt 0:00:49]} (20... h3 $14) 21. Rb2 {[%emt 0:00:00]} Re8 {[%emt 0:03:51]} 22. Rfb1 {[%emt 0:00:00]} Re7 {[%emt 0:00:57]} ({Black should play} 22... h3 $14) 23. Nb3 {[%emt 0:00:00]} Bg4 {[%emt 0:04:46]} 24. Na5 {[%emt 0:00:00]} (24. Bxg4 $142 $1 Qxg4 25. h3) 24... Bxe2 $16 {[%emt 0:00:55]} 25. Nxe2 {[%emt 0:00:00]} h3 {[%emt 0:00:04]} (25... Rc7 $16) 26. g3 {[%emt 0:00:00]} g5 {[%emt 0:02:23]} 27. Nc3 $1 {[%emt 0:00:00]} Kg7 {[%emt 0:01:47] [#]} 28. Qd1 $1 {[%emt 0:00:00] Wards off Qg4} Na6 {[%emt 0:02:02]} 29. Nb7 {[%emt 0:00:00]} Nc7 {[%emt 0:01:55]} 30. Nd6 {[%emt 0:00:00] Prevents Nce8} Qe6 {[%emt 0:00:04]} 31. Rb7 {[%emt 0:00:00]} Rd7 {[%emt 0:02:27] [#]} 32. f3 {[%emt 0:00:00]} (32. f4 $1 $16) 32... Nce8 $11 {[%emt 0:03:05]} 33. Rxd7 {[%emt 0:00:00]} Nxd7 {[%emt 0:00:00]} 34. fxe4 {[%emt 0:00:00]} Nxd6 {[%emt 0:00:17]} 35. cxd6 {[%emt 0:00:00] Qh5 is the strong threat.} dxe4 {[%emt 0:00:49][%cal Od7f6]} 36. Qh5 {[%emt 0:00:00]} f6 {[%emt 0:00:53][%cal Od7b6]} 37. Rb7 {[%emt 0:00:00][%cal Bb1b7,Bb7a7,Ba7a8][%mdl 32]} Rb8 {[%emt 0:01:14]} 38. Rxa7 {[%emt 0:00:00]} Rb2 $1 {[%emt 0:00:03]} 39. Ra8 {[%emt 0:00:00] Qh8+ would now be deadly.} Nb8 $40 {[%emt 0:00:00][%mdl 128] Black attacks.} 40. Ra7+ {[%emt 0:00:00]} Nd7 {[%emt 0:00:01] Chess con chili.} 41. Nd1 $2 {[%emt 0:00:00][%mdl 8192]} (41. Ne2 $11 Rb1+ 42. Kf2) 41... Rg2+ {[%emt 0:00:50] Black mates.} 42. Kh1 {[%emt 0:00:00]} Qf5 {[%emt 0:00:18][%cal Rf5f1]} ({Inferior is} 42... Rxa2 43. Rxa2 Qxa2 44. Qxh3 $11) 43. Rxd7+ {[%emt 0:00:00]} Qxd7 {[%emt 0:02:25] KQR-KQN} 44. g4 Qxd6 {[%emt 0:00:00][%csl Gg2][%cal Rd6h2]} (44... Qxg4 $2 {too greedy.} 45. Qxg4 Rxg4 46. d7 $18) 45. Qxh3 {[%emt 0:00:00]} Rd2 {[%emt 0:00:00]} 46. Nc3 {[%emt 0:00:00]} Qa3 {[%emt 0:00:00]} 47. Qf1 {[%emt 0:00:00]} Qxc3 {[%emt 0:00:00]} 48. Qb1 {[%emt 0:00:00]} Qxe3 {[%emt 0:00:00]} 49. Qb7+ {[%emt 0:00:00]} Kg6 {[%emt 0:00:00] What a bad dream for White.   Weighted Error Value: White=0.24 (precise) /Black=0.11 (very precise) .  Loses game:     	White=1     	---        Mistake:       	White=3     	Black=3      Inaccurate:     	White=4     	Black=5      OK:         	White=8     	Black=11     Best:        	White=2     	Black=6      Strong:       	White=2     	Black=1} 0-1